[Event "*** Titled Tuesday Blitz"]
[Site "Chess.com"]
[Date "2019.07.02"]
[Round "2"]
[White "GulamaliRises"]
[Black "Oleg_Papayan"]
[Result "1/2-1/2"]
[WhiteElo "2485"]
[BlackElo "2508"]
[TimeControl "180+2"]
[EndTime "13:25:06 PDT"]
[Termination "Game drawn by repetition"]

1. e4 {[%clk 0:03:01.9]} 1... c6 {[%clk 0:03:00.9]} 2. d4 {[%clk 0:03:01]} 2...
d5 {[%clk 0:03:02.4]} 3. f3 {[%clk 0:03:00.8]} 3... g6 {[%clk 0:03:01.9]} 4. Nc3
{[%clk 0:03:01.3]} 4... Bg7 {[%clk 0:03:03.1]} 5. e5 {[%clk 0:02:55]} 5... b5
{[%clk 0:03:04.2]} 6. Be3 {[%clk 0:02:47.9]} 6... b4 {[%clk 0:03:04.4]} 7. Na4
{[%clk 0:02:47.6]} 7... Qa5 {[%clk 0:03:03.5]} 8. b3 {[%clk 0:02:48.2]} 8... Nd7
{[%clk 0:03:04.5]} 9. Qd2 {[%clk 0:02:46.9]} 9... Nb6 {[%clk 0:03:04.9]} 10. a3
{[%clk 0:02:44.3]} 10... Nc4 {[%clk 0:02:23.5]} 11. axb4 {[%clk 0:02:20.3]}
11... Nxd2 {[%clk 0:02:19.3]} 12. bxa5 {[%clk 0:02:21.3]} 12... Nxf1 {[%clk
0:02:21.2]} 13. Kxf1 {[%clk 0:02:22.4]} 13... Nh6 {[%clk 0:02:17.4]} 14. g4
{[%clk 0:02:21.4]} 14... f6 {[%clk 0:02:13.3]} 15. exf6 {[%clk 0:01:59.5]} 15...
exf6 {[%clk 0:02:15.2]} 16. Nc5 {[%clk 0:01:57.3]} 16... O-O {[%clk 0:02:14.4]}
17. Kg2 {[%clk 0:01:52.4]} 17... Re8 {[%clk 0:02:15]} 18. Bf2 {[%clk 0:01:36.6]}
18... f5 {[%clk 0:02:14.1]} 19. g5 {[%clk 0:01:33.8]} 19... Nf7 {[%clk
0:02:14.2]} 20. f4 {[%clk 0:01:33]} 20... Nd6 {[%clk 0:02:12.3]} 21. Nf3 {[%clk
0:01:31.4]} 21... Ne4 {[%clk 0:02:13.2]} 22. Rae1 {[%clk 0:01:21.4]} 22... Rb8
{[%clk 0:02:06.8]} 23. h4 {[%clk 0:01:17]} 23... Rb5 {[%clk 0:02:00.2]} 24. a6
{[%clk 0:01:06.8]} 24... Ra5 {[%clk 0:01:52]} 25. h5 {[%clk 0:00:43.5]} 25...
Bxa6 {[%clk 0:01:39.2]} 26. h6 {[%clk 0:00:43.2]} 26... Bf8 {[%clk 0:01:33.3]}
27. Nxa6 {[%clk 0:00:44.3]} 27... Rxa6 {[%clk 0:01:34.2]} 28. Ra1 {[%clk
0:00:45.7]} 28... Rxa1 {[%clk 0:01:27.6]} 29. Rxa1 {[%clk 0:00:47.6]} 29... Bd6
{[%clk 0:01:19.5]} 30. Ne5 {[%clk 0:00:45.5]} 30... Bxe5 {[%clk 0:01:19.1]} 31.
dxe5 {[%clk 0:00:47.4]} 31... c5 {[%clk 0:01:20.1]} 32. Rxa7 {[%clk 0:00:47.9]}
32... d4 {[%clk 0:01:21.6]} 33. Rg7+ {[%clk 0:00:47.5]} 33... Kh8 {[%clk
0:01:22.5]} 34. Ra7 {[%clk 0:00:43.7]} 34... Kg8 {[%clk 0:01:22.9]} 35. Be1
{[%clk 0:00:45]} 35... Rd8 {[%clk 0:01:21.8]} 36. Kf3 {[%clk 0:00:40]} 36... d3
{[%clk 0:01:22.7]} 37. cxd3 {[%clk 0:00:41.9]} 37... Rxd3+ {[%clk 0:01:24]} 38.
Ke2 {[%clk 0:00:43.8]} 38... Rd4 {[%clk 0:01:04]} 39. e6 {[%clk 0:00:39.6]}
39... Rd8 {[%clk 0:00:56]} 40. Rg7+ {[%clk 0:00:40]} 40... Kh8 {[%clk
0:00:56.5]} 41. Ba5 {[%clk 0:00:38.5]} 41... Re8 {[%clk 0:00:57]} 42. e7 {[%clk
0:00:39.4]} 42... Ra8 {[%clk 0:00:32.7]} 43. Kd3 {[%clk 0:00:31.5]} 43... c4+
{[%clk 0:00:29.6]} 44. Kxc4 {[%clk 0:00:31.4]} 44... Nd6+ {[%clk 0:00:28.2]} 45.
Kd5 {[%clk 0:00:31.9]} 45... Rxa5+ {[%clk 0:00:28.5]} 46. Kxd6 {[%clk
0:00:32.5]} 46... Rd5+ {[%clk 0:00:30.2]} 47. Kc7 {[%clk 0:00:28.5]} 47... Rd7+
{[%clk 0:00:30.2]} 48. Kc6 {[%clk 0:00:27.4]} 48... Rc7+ {[%clk 0:00:22.2]} 49.
Kb5 {[%clk 0:00:27.6]} 49... Rc5+ {[%clk 0:00:20.3]} 50. Kb4 {[%clk 0:00:28.1]}
50... Rc4+ {[%clk 0:00:20.8]} 51. Ka3 {[%clk 0:00:29.1]} 51... Ra4+ {[%clk
0:00:21.3]} 52. Kb2 {[%clk 0:00:30.5]} 52... Ra2+ {[%clk 0:00:22.9]} 53. Kc3
{[%clk 0:00:32.1]} 53... Rc2+ {[%clk 0:00:24.6]} 54. Kd4 {[%clk 0:00:33.8]}
54... Rd2+ {[%clk 0:00:17.1]} 55. Ke5 {[%clk 0:00:34.5]} 55... Re2+ {[%clk
0:00:18.4]} 56. Kf6 {[%clk 0:00:36.4]} 56... Re6+ {[%clk 0:00:19.6]} 57. Kf7
{[%clk 0:00:38]} 57... Rxe7+ {[%clk 0:00:21.1]} 58. Kf8 {[%clk 0:00:39.6]} 58...
Re8+ {[%clk 0:00:21.7]} 59. Kf7 {[%clk 0:00:41.5]} 59... Re7+ {[%clk 0:00:23.3]}
60. Kf6 {[%clk 0:00:43]} 60... Re6+ {[%clk 0:00:23.4]} 61. Kf7 {[%clk
0:00:44.9]} 61... Re7+ {[%clk 0:00:22.9]} 1/2-1/2

[Event "*** Titled Tuesday Blitz"]
[Site "Chess.com"]
[Date "2019.07.02"]
[Round "2"]
[White "ckgchess"]
[Black "Caisachess"]
[Result "1-0"]
[WhiteElo "2674"]
[BlackElo "2381"]
[TimeControl "180+2"]
[EndTime "13:25:06 PDT"]
[Termination "ckgchess won by resignation"]

1. e4 {[%clk 0:03:01.9]} 1... e5 {[%clk 0:03:00.1]} 2. Nc3 {[%clk 0:03:02]} 2...
Nf6 {[%clk 0:03:00.7]} 3. g3 {[%clk 0:03:03.6]} 3... c6 {[%clk 0:02:59.4]} 4. d4
{[%clk 0:03:03.9]} 4... exd4 {[%clk 0:02:59.6]} 5. Qxd4 {[%clk 0:03:05.8]} 5...
d5 {[%clk 0:03:00.9]} 6. Bg5 {[%clk 0:03:06.4]} 6... Be7 {[%clk 0:02:59.8]} 7.
exd5 {[%clk 0:02:59.4]} 7... cxd5 {[%clk 0:02:58.4]} 8. O-O-O {[%clk 0:02:42.5]}
8... Nc6 {[%clk 0:02:59.4]} 9. Qd2 {[%clk 0:02:42.2]} 9... Be6 {[%clk
0:02:56.1]} 10. Bg2 {[%clk 0:02:40.3]} 10... O-O {[%clk 0:02:53.3]} 11. Nge2
{[%clk 0:02:39.6]} 11... Qb6 {[%clk 0:02:35.3]} 12. Nf4 {[%clk 0:02:23.2]} 12...
Rad8 {[%clk 0:02:24.7]} 13. Kb1 {[%clk 0:02:21.7]} 13... d4 {[%clk 0:02:19.6]}
14. Nce2 {[%clk 0:02:03.7]} 14... Bxa2+ {[%clk 0:02:13.5]} 15. Kxa2 {[%clk
0:02:02.5]} 15... Nb4+ {[%clk 0:02:14.6]} 16. Kb1 {[%clk 0:02:03.6]} 16... Qa5
{[%clk 0:02:09.1]} 17. Nc1 {[%clk 0:02:04.7]} 17... Qxg5 {[%clk 0:02:08.9]} 18.
Rhe1 {[%clk 0:02:05.7]} 18... Bc5 {[%clk 0:02:00.6]} 19. Nb3 {[%clk 0:02:03]}
19... b6 {[%clk 0:01:54.9]} 20. h4 {[%clk 0:01:57.8]} 20... Qg4 {[%clk
0:01:46.3]} 21. Bh3 {[%clk 0:01:32.4]} 21... Qf3 {[%clk 0:01:47.1]} 22. Bg2
{[%clk 0:01:33.4]} 22... Qg4 {[%clk 0:01:48.2]} 23. Nd3 {[%clk 0:01:26]} 23...
Nxd3 {[%clk 0:01:44]} 24. Qxd3 {[%clk 0:01:27.9]} 24... Nd5 {[%clk 0:01:33.1]}
25. Re4 {[%clk 0:01:15.6]} 25... Qd7 {[%clk 0:01:22.5]} 26. Qc4 {[%clk
0:01:08.4]} 26... Nf6 {[%clk 0:01:11.5]} 27. Nxc5 {[%clk 0:01:05.7]} 27... bxc5
{[%clk 0:01:11.9]} 28. Re5 {[%clk 0:01:07.4]} 28... Rb8 {[%clk 0:00:59.9]} 29.
Rxc5 {[%clk 0:01:05.1]} 29... Rfd8 {[%clk 0:00:56.2]} 30. Rc7 {[%clk 0:01:04.4]}
30... Qe8 {[%clk 0:00:55]} 31. Rxa7 {[%clk 0:00:59]} 31... Rdc8 {[%clk 0:00:49]}
32. Qxd4 {[%clk 0:00:57.6]} 32... Qb5 {[%clk 0:00:46.3]} 33. b3 {[%clk
0:00:36.4]} 33... Qe2 {[%clk 0:00:43.5]} 34. Qd2 {[%clk 0:00:32.5]} 34... Qe5
{[%clk 0:00:40.2]} 35. Ra4 {[%clk 0:00:26.7]} 35... h6 {[%clk 0:00:34.3]} 36. g4
{[%clk 0:00:26.8]} 36... Qh2 {[%clk 0:00:33.6]} 37. g5 {[%clk 0:00:24.7]} 37...
hxg5 {[%clk 0:00:30.1]} 38. hxg5 {[%clk 0:00:26.6]} 38... Nh7 {[%clk 0:00:29.3]}
39. Be4 {[%clk 0:00:25.2]} 39... Qe5 {[%clk 0:00:24.3]} 40. f4 {[%clk
0:00:23.3]} 40... Qb5 {[%clk 0:00:21.5]} 41. Rd4 {[%clk 0:00:19.7]} 41... Nf8
{[%clk 0:00:21.8]} 42. Qh2 {[%clk 0:00:18.9]} 42... Re8 {[%clk 0:00:15.7]} 43.
Rh1 {[%clk 0:00:19.6]} 43... Ng6 {[%clk 0:00:15.6]} 44. f5 {[%clk 0:00:14.3]}
44... Qe5 {[%clk 0:00:13.1]} 45. fxg6 {[%clk 0:00:13.6]} 45... Qxh2 {[%clk
0:00:11.8]} 46. Rxh2 {[%clk 0:00:15.5]} 46... fxg6 {[%clk 0:00:13.1]} 47. Bd5+
{[%clk 0:00:16.5]} 47... Kf8 {[%clk 0:00:14.6]} 48. Rh8+ {[%clk 0:00:17.4]}
48... Ke7 {[%clk 0:00:15.7]} 49. Re4+ {[%clk 0:00:19]} 49... Kd7 {[%clk
0:00:14.2]} 50. Rexe8 {[%clk 0:00:20.9]} 50... Rxe8 {[%clk 0:00:14.2]} 51. Bc6+
{[%clk 0:00:22.3]} 51... Kxc6 {[%clk 0:00:15.7]} 52. Rxe8 {[%clk 0:00:24.2]} 1-0

[Event "*** Titled Tuesday Blitz"]
[Site "Chess.com"]
[Date "2019.07.02"]
[Round "2"]
[White "KL31"]
[Black "PlotnikovPavel"]
[Result "0-1"]
[WhiteElo "2295"]
[BlackElo "2331"]
[TimeControl "180+2"]
[EndTime "13:25:07 PDT"]
[Termination "PlotnikovPavel won on time"]

1. d4 {[%clk 0:03:01.9]} 1... e6 {[%clk 0:02:59.4]} 2. Nf3 {[%clk 0:03:03.3]}
2... f5 {[%clk 0:03:00]} 3. g3 {[%clk 0:03:01.1]} 3... Nf6 {[%clk 0:03:01]} 4.
Bg2 {[%clk 0:03:02.5]} 4... d5 {[%clk 0:03:01.4]} 5. O-O {[%clk 0:03:01.9]} 5...
c6 {[%clk 0:03:02.7]} 6. c4 {[%clk 0:03:02.3]} 6... Bd6 {[%clk 0:03:03.8]} 7. b3
{[%clk 0:02:57.6]} 7... Qe7 {[%clk 0:03:03.9]} 8. Ne5 {[%clk 0:02:58.8]} 8...
O-O {[%clk 0:03:04.4]} 9. Nd2 {[%clk 0:02:56.5]} 9... Nbd7 {[%clk 0:03:05.2]}
10. Ndf3 {[%clk 0:02:55.9]} 10... Ne4 {[%clk 0:03:05.6]} 11. Bb2 {[%clk
0:02:56.5]} 11... Ndf6 {[%clk 0:03:06.1]} 12. Nd2 {[%clk 0:02:42.4]} 12... Bd7
{[%clk 0:03:06.2]} 13. f3 {[%clk 0:02:36.4]} 13... Nxd2 {[%clk 0:03:05.6]} 14.
Qxd2 {[%clk 0:02:38.3]} 14... Be8 {[%clk 0:03:02.5]} 15. a4 {[%clk 0:02:26.5]}
15... a5 {[%clk 0:02:59.6]} 16. Kh1 {[%clk 0:02:24.9]} 16... h6 {[%clk
0:02:59.2]} 17. Rae1 {[%clk 0:02:21.9]} 17... g5 {[%clk 0:02:53.5]} 18. e4
{[%clk 0:02:10.8]} 18... fxe4 {[%clk 0:02:53.9]} 19. fxe4 {[%clk 0:02:11.9]}
19... Nxe4 {[%clk 0:02:52]} 20. Bxe4 {[%clk 0:02:00.8]} 20... dxe4 {[%clk
0:02:51.1]} 21. Qe2 {[%clk 0:01:51.3]} 21... Rxf1+ {[%clk 0:02:36.5]} 22. Rxf1
{[%clk 0:01:53.2]} 22... Bxe5 {[%clk 0:02:37.4]} 23. dxe5 {[%clk 0:01:53.7]}
23... Bg6 {[%clk 0:02:38.5]} 24. Rf6 {[%clk 0:01:45.5]} 24... Kg7 {[%clk
0:02:39.5]} 25. Qg4 {[%clk 0:01:35.3]} 25... Re8 {[%clk 0:02:35.9]} 26. h4
{[%clk 0:01:32.5]} 26... Qb4 {[%clk 0:02:17]} 27. hxg5 {[%clk 0:01:12.3]} 27...
Qe1+ {[%clk 0:02:16]} 28. Kg2 {[%clk 0:01:13.5]} 28... Qd2+ {[%clk 0:02:16.7]}
29. Rf2 {[%clk 0:01:13.9]} 29... Qxg5 {[%clk 0:02:17.3]} 30. Qxg5 {[%clk
0:01:07.1]} 30... hxg5 {[%clk 0:02:18.9]} 31. Bc1 {[%clk 0:01:08.4]} 31... g4
{[%clk 0:02:17.8]} 32. Bg5 {[%clk 0:01:05.7]} 32... Bf5 {[%clk 0:02:18.1]} 33.
Rd2 {[%clk 0:01:04.2]} 33... Rf8 {[%clk 0:02:19.3]} 34. Bf6+ {[%clk 0:00:56.1]}
34... Kg6 {[%clk 0:02:20.4]} 35. Rd7 {[%clk 0:00:57]} 35... Rf7 {[%clk
0:02:21.4]} 36. Rd8 {[%clk 0:00:58.3]} 36... e3 {[%clk 0:02:19.7]} 37. Kf1
{[%clk 0:00:58.4]} 37... Bc2 {[%clk 0:02:19]} 38. Rg8+ {[%clk 0:00:54]} 38...
Kf5 {[%clk 0:02:19.6]} 39. Ke2 {[%clk 0:00:51.7]} 39... Rxf6 {[%clk 0:01:52.5]}
40. exf6 {[%clk 0:00:51.4]} 40... Kxf6 {[%clk 0:01:54.4]} 41. Rxg4 {[%clk
0:00:41.9]} 41... Bxb3 {[%clk 0:01:55.3]} 42. c5 {[%clk 0:00:43.1]} 42... Ke5
{[%clk 0:01:50]} 43. Kxe3 {[%clk 0:00:43.5]} 43... Kd5 {[%clk 0:01:50.9]} 44.
Rd4+ {[%clk 0:00:32.9]} 44... Kxc5 {[%clk 0:01:51.9]} 45. g4 {[%clk 0:00:34.8]}
45... b5 {[%clk 0:01:43]} 46. axb5 {[%clk 0:00:31.5]} 46... cxb5 {[%clk
0:01:44.9]} 47. g5 {[%clk 0:00:29]} 47... e5 {[%clk 0:01:46]} 48. Re4 {[%clk
0:00:26.4]} 48... Kd6 {[%clk 0:01:46.2]} 49. g6 {[%clk 0:00:23.2]} 49... Ke6
{[%clk 0:01:37.2]} 50. Rg4 {[%clk 0:00:19.2]} 50... Kf6 {[%clk 0:01:38.1]} 51.
g7 {[%clk 0:00:20.2]} 51... Bg8 {[%clk 0:01:39]} 52. Kd3 {[%clk 0:00:21]} 52...
Kf5 {[%clk 0:01:38.3]} 53. Rg1 {[%clk 0:00:21.2]} 53... b4 {[%clk 0:01:38.4]}
54. Kc2 {[%clk 0:00:21.8]} 54... a4 {[%clk 0:01:39.1]} 55. Kb2 {[%clk
0:00:21.2]} 55... a3+ {[%clk 0:01:39.7]} 56. Kc2 {[%clk 0:00:18.9]} 56... e4
{[%clk 0:01:40.4]} 57. Rf1+ {[%clk 0:00:17.5]} 57... Kg6 {[%clk 0:01:41.4]} 58.
Re1 {[%clk 0:00:18.3]} 58... Kxg7 {[%clk 0:01:36.5]} 59. Rg1+ {[%clk 0:00:17.9]}
59... Kf8 {[%clk 0:01:33.2]} 60. Rg5 {[%clk 0:00:17.2]} 60... b3+ {[%clk
0:01:29.5]} 61. Kc3 {[%clk 0:00:17.9]} 61... b2 {[%clk 0:01:26.2]} 62. Rb5
{[%clk 0:00:04.2]} 62... Ba2 {[%clk 0:01:25.7]} 0-1

[Event "*** Titled Tuesday Blitz"]
[Site "Chess.com"]
[Date "2019.07.02"]
[Round "2"]
[White "bubacik"]
[Black "bascheyaro"]
[Result "1/2-1/2"]
[WhiteElo "2695"]
[BlackElo "2754"]
[TimeControl "180+2"]
[EndTime "13:25:10 PDT"]
[Termination "Game drawn by repetition"]

1. d4 {[%clk 0:03:01.9]} 1... Nf6 {[%clk 0:03:00.8]} 2. c4 {[%clk 0:03:00.5]}
2... e6 {[%clk 0:03:02]} 3. Nc3 {[%clk 0:03:01.1]} 3... d5 {[%clk 0:03:03.4]} 4.
Nf3 {[%clk 0:03:00.9]} 4... c6 {[%clk 0:03:03.8]} 5. e3 {[%clk 0:03:01.2]} 5...
Nbd7 {[%clk 0:03:04.8]} 6. Qc2 {[%clk 0:03:02.4]} 6... Bd6 {[%clk 0:03:06]} 7.
Bd3 {[%clk 0:03:03.7]} 7... h6 {[%clk 0:03:07.1]} 8. O-O {[%clk 0:03:04.7]} 8...
O-O {[%clk 0:03:08.2]} 9. Rd1 {[%clk 0:03:00.4]} 9... Qe7 {[%clk 0:03:08.5]} 10.
e4 {[%clk 0:02:58]} 10... dxe4 {[%clk 0:03:09.3]} 11. Nxe4 {[%clk 0:02:59.9]}
11... Nxe4 {[%clk 0:03:11.2]} 12. Bxe4 {[%clk 0:03:01.8]} 12... Nf6 {[%clk
0:03:13.1]} 13. Bd3 {[%clk 0:03:02.8]} 13... Rd8 {[%clk 0:03:14.3]} 14. b3
{[%clk 0:02:58.6]} 14... c5 {[%clk 0:03:14.9]} 15. Bb2 {[%clk 0:02:39.4]} 15...
b6 {[%clk 0:03:16]} 16. Re1 {[%clk 0:02:35.7]} 16... cxd4 {[%clk 0:03:06.5]} 17.
Nxd4 {[%clk 0:02:35.2]} 17... Bb7 {[%clk 0:03:05.5]} 18. Nf5 {[%clk 0:02:32.6]}
18... Qd7 {[%clk 0:03:02.2]} 19. Nxh6+ {[%clk 0:02:10.4]} 19... gxh6 {[%clk
0:03:01.2]} 20. Bxf6 {[%clk 0:02:12.1]} 20... Bxh2+ {[%clk 0:03:02.1]} 21. Kxh2
{[%clk 0:02:14]} 21... Qxd3 {[%clk 0:03:03.4]} 22. Qxd3 {[%clk 0:02:15]} 22...
Rxd3 {[%clk 0:03:04]} 23. Rad1 {[%clk 0:02:16.5]} 23... Be4 {[%clk 0:02:58.2]}
24. f3 {[%clk 0:01:48.1]} 24... Bg6 {[%clk 0:02:53.8]} 25. Kg3 {[%clk
0:01:44.9]} 25... Kh7 {[%clk 0:02:52.7]} 26. Kf4 {[%clk 0:01:39.9]} 26... a5
{[%clk 0:02:52.8]} 27. Rxd3 {[%clk 0:01:26.6]} 27... Bxd3 {[%clk 0:02:54.7]} 28.
Rd1 {[%clk 0:01:25.2]} 28... Bc2 {[%clk 0:02:55.1]} 29. Rd2 {[%clk 0:01:25.2]}
29... Bb1 {[%clk 0:02:56.4]} 30. Bd8 {[%clk 0:01:19.9]} 30... Bxa2 {[%clk
0:02:51.8]} 31. Bxb6 {[%clk 0:01:12.4]} 31... Bxb3 {[%clk 0:02:52.8]} 32. Rd8
{[%clk 0:01:07.2]} 32... Rxd8 {[%clk 0:02:00.1]} 33. Bxd8 {[%clk 0:01:09.1]}
33... a4 {[%clk 0:02:01.2]} 34. c5 {[%clk 0:01:08.3]} 34... Kg6 {[%clk
0:02:02.6]} 35. Ba5 {[%clk 0:00:55.3]} 35... a3 {[%clk 0:02:00.2]} 36. Bc3
{[%clk 0:00:56.2]} 36... Bd5 {[%clk 0:02:00.9]} 37. Ke5 {[%clk 0:00:51.9]} 37...
Kg5 {[%clk 0:01:58.4]} 38. Kd6 {[%clk 0:00:41.4]} 38... h5 {[%clk 0:01:55.8]}
39. c6 {[%clk 0:00:40.5]} 39... a2 {[%clk 0:01:55.9]} 40. c7 {[%clk 0:00:37.6]}
40... Bb7 {[%clk 0:01:57]} 41. Ke7 {[%clk 0:00:30.1]} 41... Kf4 {[%clk
0:01:56.8]} 42. Kxf7 {[%clk 0:00:27.5]} 42... Bc8 {[%clk 0:01:57.3]} 43. Kg6
{[%clk 0:00:25.5]} 43... h4 {[%clk 0:01:54.1]} 44. Kh5 {[%clk 0:00:24.6]} 44...
Kg3 {[%clk 0:01:54.5]} 45. Be5+ {[%clk 0:00:23.1]} 45... Kxg2 {[%clk 0:01:55.9]}
46. Kxh4 {[%clk 0:00:24.2]} 46... Kxf3 {[%clk 0:01:57.3]} 47. Kg5 {[%clk
0:00:24.6]} 47... Ke4 {[%clk 0:01:58.7]} 48. Kf6 {[%clk 0:00:25.6]} 48... Kd5
{[%clk 0:02:00.1]} 49. Ba1 {[%clk 0:00:25.5]} 49... Kd6 {[%clk 0:02:00.8]} 50.
Be5+ {[%clk 0:00:26.1]} 50... Kd7 {[%clk 0:02:02.3]} 51. Kf7 {[%clk 0:00:25.7]}
51... Kc6 {[%clk 0:02:00.7]} 52. Ke7 {[%clk 0:00:25.6]} 52... Kd5 {[%clk
0:02:01]} 53. Kf6 {[%clk 0:00:27]} 53... Bb7 {[%clk 0:01:59.2]} 54. Ba1 {[%clk
0:00:26.7]} 54... Kd6 {[%clk 0:02:00.4]} 55. Be5+ {[%clk 0:00:27.9]} 55... Kd7
{[%clk 0:02:01.4]} 56. Kf7 {[%clk 0:00:28.9]} 56... Bc8 {[%clk 0:02:02.5]} 57.
Kf6 {[%clk 0:00:29.5]} 57... Kc6 {[%clk 0:01:51.5]} 58. Ke7 {[%clk 0:00:30.4]}
58... Kc5 {[%clk 0:01:49.4]} 59. Kd8 {[%clk 0:00:20.9]} 59... Ba6 {[%clk
0:01:50.3]} 60. Ke7 {[%clk 0:00:18.4]} 60... Kd5 {[%clk 0:01:51.5]} 61. Kf6
{[%clk 0:00:19.8]} 61... Bc8 {[%clk 0:01:52]} 62. Ba1 {[%clk 0:00:20.8]} 62...
Ke4 {[%clk 0:01:53.5]} 63. Be5 {[%clk 0:00:20.6]} 63... Kd3 {[%clk 0:01:52.5]}
64. Ke7 {[%clk 0:00:21.6]} 64... Kc4 {[%clk 0:01:53.6]} 65. Kd8 {[%clk
0:00:22.2]} 65... Ba6 {[%clk 0:01:54.2]} 66. Ke7 {[%clk 0:00:22.6]} 66... Kd5
{[%clk 0:01:55.1]} 67. Kf6 {[%clk 0:00:23.5]} 67... Bb7 {[%clk 0:01:56.6]} 68.
Ba1 {[%clk 0:00:24.5]} 68... Bc8 {[%clk 0:01:54.5]} 69. Be5 {[%clk 0:00:23.9]}
69... Ke4 {[%clk 0:01:56]} 70. Ba1 {[%clk 0:00:24.8]} 70... Kf4 {[%clk 0:01:56]}
71. Be5+ {[%clk 0:00:25.2]} 71... Ke3 {[%clk 0:01:57.1]} 72. Ke7 {[%clk
0:00:26.1]} 72... Ke4 {[%clk 0:01:58.1]} 73. Kf6 {[%clk 0:00:26.8]} 1/2-1/2

[Event "*** Titled Tuesday Blitz"]
[Site "Chess.com"]
[Date "2019.07.02"]
[Round "2"]
[White "ChessWeebs"]
[Black "MagnusSeinFanboy"]
[Result "1-0"]
[WhiteElo "2781"]
[BlackElo "2465"]
[TimeControl "180+2"]
[EndTime "13:25:13 PDT"]
[Termination "ChessWeebs won by checkmate"]

1. Nf3 {[%clk 0:03:01.9]} 1... d5 {[%clk 0:02:58.5]} 2. g3 {[%clk 0:03:02.7]}
2... g6 {[%clk 0:02:59.6]} 3. Bg2 {[%clk 0:03:03.9]} 3... Bg7 {[%clk 0:03:01.2]}
4. O-O {[%clk 0:03:05.5]} 4... e5 {[%clk 0:03:02.1]} 5. d3 {[%clk 0:03:05.1]}
5... Ne7 {[%clk 0:03:02.1]} 6. Nbd2 {[%clk 0:03:04.9]} 6... O-O {[%clk
0:02:59.8]} 7. c3 {[%clk 0:03:05.8]} 7... Be6 {[%clk 0:02:57.8]} 8. Qc2 {[%clk
0:03:04.6]} 8... c5 {[%clk 0:02:43.1]} 9. e4 {[%clk 0:03:04.6]} 9... Nbc6 {[%clk
0:02:38.8]} 10. exd5 {[%clk 0:03:02.8]} 10... Nxd5 {[%clk 0:02:38.8]} 11. Re1
{[%clk 0:03:04]} 11... Rc8 {[%clk 0:02:31.1]} 12. Nc4 {[%clk 0:03:03.1]} 12...
f6 {[%clk 0:02:21.3]} 13. a4 {[%clk 0:03:03.7]} 13... Qd7 {[%clk 0:02:20.4]} 14.
Nfd2 {[%clk 0:02:59.1]} 14... Kh8 {[%clk 0:02:18.1]} 15. Ne4 {[%clk 0:02:59.8]}
15... b6 {[%clk 0:02:19.6]} 16. a5 {[%clk 0:02:57.9]} 16... Qc7 {[%clk
0:02:05.5]} 17. axb6 {[%clk 0:02:56.9]} 17... axb6 {[%clk 0:02:07.4]} 18. Ned6
{[%clk 0:02:36.6]} 18... Rcd8 {[%clk 0:02:03.9]} 19. Nb5 {[%clk 0:02:31]} 19...
Qb8 {[%clk 0:02:02]} 20. f4 {[%clk 0:02:24.1]} 20... Nce7 {[%clk 0:01:04.9]} 21.
fxe5 {[%clk 0:02:20.8]} 21... fxe5 {[%clk 0:01:06.8]} 22. Qe2 {[%clk 0:01:56.3]}
22... Nc6 {[%clk 0:01:05.8]} 23. Bg5 {[%clk 0:01:55.5]} 23... Rd7 {[%clk
0:01:04.4]} 24. Ra6 {[%clk 0:01:50.7]} 24... Bf5 {[%clk 0:00:56.6]} 25. Bxd5
{[%clk 0:01:32]} 25... Rxd5 {[%clk 0:00:56.6]} 26. Rxb6 {[%clk 0:01:33.5]} 26...
Qc8 {[%clk 0:00:34.8]} 27. Nbd6 {[%clk 0:01:34.2]} 27... Qd7 {[%clk 0:00:34.1]}
28. Rb7 {[%clk 0:01:26.1]} 28... Qe6 {[%clk 0:00:16.2]} 29. Nxf5 {[%clk
0:01:26.9]} 29... Rxf5 {[%clk 0:00:15.8]} 30. Ne3 {[%clk 0:01:07.3]} 30... Rxg5
{[%clk 0:00:13.8]} 31. Nxd5 {[%clk 0:01:08.8]} 31... Qxd5 {[%clk 0:00:13.8]} 32.
Qe4 {[%clk 0:01:10.5]} 32... Qxe4 {[%clk 0:00:10.4]} 33. dxe4 {[%clk 0:01:11.4]}
33... h5 {[%clk 0:00:08.4]} 34. Rf1 {[%clk 0:01:07.9]} 34... Kg8 {[%clk
0:00:03]} 35. Rff7 {[%clk 0:01:05.5]} 35... Bf8 {[%clk 0:00:04.6]} 36. Rfc7
{[%clk 0:01:05.3]} 36... Nd8 {[%clk 0:00:04.9]} 37. Rb8 {[%clk 0:00:58.8]} 37...
Ne6 {[%clk 0:00:05.8]} 38. Rc6 {[%clk 0:01:00.1]} 38... Kf7 {[%clk 0:00:05.5]}
39. Rbb6 {[%clk 0:01:01.3]} 39... Nd8 {[%clk 0:00:05.2]} 40. Rc7+ {[%clk
0:01:02.5]} 40... Ke8 {[%clk 0:00:03.5]} 41. Kg2 {[%clk 0:00:57.6]} 41... h4
{[%clk 0:00:04.2]} 42. Kf3 {[%clk 0:00:45.7]} 42... hxg3 {[%clk 0:00:05.4]} 43.
hxg3 {[%clk 0:00:47.6]} 43... Rh5 {[%clk 0:00:06.9]} 44. Rxg6 {[%clk 0:00:47.8]}
44... Rh2 {[%clk 0:00:08]} 45. Rb6 {[%clk 0:00:37.8]} 45... Rd2 {[%clk
0:00:08.4]} 46. Kg4 {[%clk 0:00:37.2]} 46... Bd6 {[%clk 0:00:08.2]} 47. Rh7
{[%clk 0:00:37.8]} 47... Bf8 {[%clk 0:00:03.6]} 48. Kf5 {[%clk 0:00:36.6]} 48...
Rf2+ {[%clk 0:00:03.7]} 49. Kxe5 {[%clk 0:00:21.1]} 49... Nf7+ {[%clk
0:00:04.9]} 50. Kd5 {[%clk 0:00:22.5]} 50... Rd2+ {[%clk 0:00:05.6]} 51. Kc4
{[%clk 0:00:21.7]} 51... Ne5+ {[%clk 0:00:06.1]} 52. Kb3 {[%clk 0:00:22.9]}
52... c4+ {[%clk 0:00:04.7]} 53. Ka4 {[%clk 0:00:24.3]} 53... Nd3 {[%clk
0:00:03]} 54. Rb8# {[%clk 0:00:25]} 1-0